bitfinex-derivatives/quotes_BTCF0:USTF0_20251202
["timestamp","ask_amount","ask_price","bid_price","bid_amount"]
[1764667043460,0.1568,86670.0,86669.0,0.17228939]
[1764667043858,0.1683388,86670.0,86669.0,0.00514939]
[1764667044247,0.1683388,86670.0,86669.0,0.17228939]
[1764667045064,0.1693388,86670.0,86669.0,0.17128939]
[1764667045450,0.1693388,86670.0,86669.0,0.16728939]
[1764667045651,0.2212188,86670.0,86669.0,0.00014939]
[1764667045858,0.2202188,86670.0,86669.0,0.00014939]
[1764667046056,0.1723388,86670.0,86669.0,0.16728939]
[1764667046258,0.1713388,86670.0,86669.0,0.16728939]
[1764667047357,0.1713388,86670.0,86669.0,0.08433939]
[1764667047755,0.1723388,86670.0,86669.0,0.08433939]
[1764667047951,0.2212188,86670.0,86669.0,0.00014939]
[1764667048155,0.2202188,86670.0,86669.0,0.00014939]
[1764667048363,0.2212188,86670.0,86669.0,0.00014939]
[1764667048965,0.2202188,86670.0,86669.0,0.00014939]
[1764667049167,0.2212188,86670.0,86669.0,0.00014939]
[1764667050656,0.1723388,86670.0,86669.0,0.16728939]
[1764667051864,0.1703388,86670.0,86669.0,0.16728939]
[1764667052071,0.1713388,86670.0,86669.0,0.16728939]
[1764667052764,0.1993088,86670.0,86669.0,0.00014939]
[1764667053964,0.1993088,86670.0,86669.0,0.16250939]
[1764667055062,0.1713388,86670.0,86669.0,0.16250939]
[1764667057367,0.23326445,86670.0,86669.0,0.16250939]
[1764667058388,0.1713388,86670.0,86669.0,0.16250939]
[1764667059777,0.1910788,86670.0,86669.0,0.00014939]
[1764667059967,0.1910788,86670.0,86664.0,0.09461]
[1764667059968,0.1816694,86665.0,86664.0,0.09461]
[1764667060169,0.21954,86664.0,86663.0,0.10685]
[1764667061167,0.31015235,86664.0,86663.0,0.10685]
[1764667062174,0.31115235,86664.0,86663.0,0.10685]
[1764667064778,0.31115235,86664.0,86663.0,0.07387962]
[1764667064977,0.1816734,86635.0,86634.0,0.16236]
[1764667065281,0.1816734,86635.0,86634.0,0.21179]
[1764667066276,0.00017314,86643.0,86634.0,0.21179]
[1764667066277,0.1816731,86638.0,86637.0,0.16236]
[1764667067364,0.1816731,86638.0,86637.0,0.16536]
[1764667067970,0.1816731,86638.0,86637.0,0.16636]
[1764667072575,0.26175729,86638.0,86637.0,0.16636]
[1764667078382,0.08342,86638.0,86637.0,0.16636]
[1764667079878,0.00017314,86643.0,86642.0,0.16236]
[1764667079879,0.17030314,86643.0,86642.0,0.16236]
[1764667080179,0.00017314,86643.0,86642.0,0.16236]
[1764667080484,0.06225074,86643.0,86642.0,0.16236]
[1764667081078,0.06225074,86643.0,86642.0,0.16436]
[1764667082380,0.06209718,86644.0,86643.0,0.1739024]
[1764667082586,0.09061235,86664.0,86643.0,0.1739024]
[1764667082587,0.08296687,86658.0,86657.0,0.17426]
[1764667082888,0.3608,86666.0,86665.0,0.17426]
[1764667083578,0.44806,86666.0,86665.0,0.17426]
[1764667083777,0.53602,86666.0,86665.0,0.17426]
[1764667084394,0.53802,86666.0,86665.0,0.17426]
[1764667084682,0.002,86666.0,86665.0,0.17426]
[1764667085088,0.08926,86666.0,86665.0,0.17426]
[1764667085477,0.17722,86666.0,86665.0,0.17426]
[1764667085677,0.17522,86666.0,86665.0,0.17426]
[1764667085889,0.17622,86666.0,86665.0,0.17426]
[1764667088690,0.17522,86666.0,86665.0,0.17426]
[1764667089379,0.17622,86666.0,86665.0,0.17426]
[1764667090889,0.17522,86659.0,86658.0,0.17426]
[1764667091093,0.17522,86658.0,86657.0,0.36097314]
[1764667091284,0.17522,86658.0,86657.0,0.53523314]
[1764667091485,0.17522,86663.0,86658.0,0.05265]
[1764667091692,0.17522,86663.0,86662.0,0.17426]
[1764667093293,0.17622,86663.0,86662.0,0.17426]
[1764667094294,0.2371704,86658.0,86657.0,0.10702314]
[1764667095798,0.2371704,86658.0,86657.0,0.00017314]
[1764667096889,0.1867604,86658.0,86657.0,0.17443314]
[1764667097202,0.1867604,86658.0,86657.0,0.08360314]
[1764667097390,0.2119704,86658.0,86657.0,0.00017314]
[1764667098192,0.1867604,86658.0,86657.0,0.17443314]
[1764667098691,0.1867604,86658.0,86657.0,0.08360314]
[1764667100898,0.5475604,86658.0,86657.0,0.08360314]
[1764667101801,0.26972657,86663.0,86662.0,0.17426]
[1764667101996,0.0115395,86665.0,86664.0,0.22691]
[1764667102593,0.0987995,86665.0,86664.0,0.22691]
[1764667103409,0.1867595,86665.0,86664.0,0.22691]
[1764667103898,0.24885386,86665.0,86664.0,0.22691]
[1764667104398,0.1877595,86665.0,86664.0,0.22691]
[1764667104594,0.25087012,86665.0,86664.0,0.22691]
[1764667105407,0.1887595,86665.0,86664.0,0.22691]
[1764667105605,0.25088046,86665.0,86664.0,0.22691]
[1764667105807,0.15138096,86665.0,86664.0,0.22691]
[1764667106009,0.002,86665.0,86664.0,0.22691]
[1764667107107,0.001,86665.0,86664.0,0.22691]
[1764667107612,0.001,86665.0,86662.0,0.3608]
[1764667107613,0.1867593,86666.0,86665.0,0.17426]
[1764667107797,0.1867593,86666.0,86658.0,0.05265]
[1764667107798,0.1867602,86659.0,86658.0,0.22691]
[1764667108198,0.1867602,86659.0,86658.0,0.17426]
[1764667108601,0.58124091,86668.0,86660.0,0.05265]
[1764667108602,0.0115392,86667.0,86660.0,0.05265]
[1764667108906,0.0987995,86665.0,86664.0,0.17426]
[1764667110911,0.0997995,86665.0,86664.0,0.17426]
[1764667111711,0.001,86665.0,86664.0,0.17426]
[1764667112208,0.1602,86658.0,86657.0,0.15787314]
[1764667112410,0.1717404,86658.0,86657.0,0.15787314]
[1764667112914,0.1717404,86658.0,86657.0,0.00017314]
[1764667113102,0.1717404,86658.0,86657.0,0.08054314]
[1764667114205,0.1717404,86658.0,86657.0,0.16145314]
[1764667118313,0.10339143,86660.0,86657.0,0.16145314]
[1764667118516,0.0115399,86662.0,86661.0,0.16128]
[1764667118816,0.0959299,86662.0,86661.0,0.16128]
[1764667119018,0.1746199,86662.0,86661.0,0.16128]
[1764667119915,0.1756199,86662.0,86661.0,0.16128]
[1764667120119,0.1756199,86662.0,86661.0,0.08037]
[1764667120620,0.1746204,86658.0,86657.0,0.16145314]
[1764667123723,0.23685935,86658.0,86657.0,0.00017314]
[1764667123922,0.1746208,86655.0,86654.0,0.10686]
[1764667124222,0.1746208,86655.0,86654.0,0.09749074]
[1764667124421,0.1746208,86655.0,86654.0,4e-08]
[1764667124621,0.5746208,86655.0,86654.0,4e-08]
[1764667125625,0.0959341,86631.0,86630.0,0.16128]
[1764667125816,0.1746241,86631.0,86630.0,0.16128]
[1764667127128,0.1746241,86631.0,86630.0,0.16528]
[1764667127814,0.1746241,86631.0,86630.0,0.16628]
[1764667130417,0.0115438,86633.0,86630.0,0.005]
[1764667130625,0.0115438,86633.0,86632.0,0.20981]
[1764667130822,0.22530434,86637.0,86636.0,0.16128]
[1764667131219,0.06222434,86637.0,86636.0,0.16128]
[1764667131529,0.06222434,86638.0,86637.0,0.16128]
[1764667132027,0.14661434,86638.0,86637.0,0.16128]
[1764667132418,0.08439,86638.0,86637.0,0.16128]
[1764667132617,0.08439,86638.0,86636.0,0.001]
[1764667132618,0.07394048,86639.0,86638.0,0.16128]
[1764667132823,0.1547531,86639.0,86638.0,0.16128]
[1764667133125,0.06239748,86639.0,86638.0,0.16128]
[1764667133721,0.00017314,86639.0,86638.0,0.16128]
[1764667133923,0.00017314,86639.0,86638.0,0.16328]
[1764667134634,0.08456314,86639.0,86638.0,0.16328]
[1764667134832,0.16325314,86639.0,86638.0,0.16328]
[1764667136225,0.00017314,86639.0,86638.0,0.16328]
[1764667136426,0.00017314,86639.0,86638.0,0.52408]
[1764667136627,0.06222434,86646.0,86638.0,1.471983]
[1764667136825,0.0115398,86662.0,86661.0,0.16128]
[1764667137527,0.1053107,86662.0,86661.0,0.16128]
[1764667138319,0.0937709,86662.0,86661.0,0.16128]
[1764667138528,0.06222434,86666.0,86665.0,0.16128]
[1764667138724,0.06222434,86668.0,86666.0,0.16128]
[1764667138927,0.372339,86669.0,86668.0,0.16128]
[1764667139132,0.011539,86669.0,86668.0,0.16128]
[1764667140144,0.014539,86669.0,86668.0,0.16128]
[1764667140339,0.003,86669.0,86668.0,0.16128]
[1764667141535,0.004,86669.0,86668.0,0.16128]
[1764667141842,0.3608,86678.0,86677.0,0.16128]
[1764667142140,0.46419143,86694.0,86674.0,0.04853]
[1764667142141,0.07376074,86688.0,86687.0,0.16128]
[1764667142445,0.1746164,86688.0,86687.0,0.16128]
[1764667143328,0.08639,86688.0,86687.0,0.16128]
[1764667143535,0.002,86688.0,86687.0,0.16128]
[1764667143732,0.0115356,86694.0,86693.0,0.16101]
[1764667143934,0.08313882,86696.0,86695.0,0.16101]
[1764667144136,0.00017303,86696.0,86695.0,0.16101]
[1764667144542,0.09403648,86696.0,86695.0,0.16101]
[1764667144928,0.17090648,86696.0,86695.0,0.16101]
[1764667145524,0.17190648,86696.0,86695.0,0.16101]
[1764667145943,0.17390648,86696.0,86695.0,0.16101]
[1764667146645,0.25307648,86696.0,86695.0,0.16101]
[1764667147238,0.31499686,86696.0,86695.0,0.16101]
[1764667148329,0.25307648,86696.0,86695.0,0.21065]
[1764667149932,0.25307648,86696.0,86695.0,0.16101]
[1764667150131,0.15604,86689.0,86688.0,0.16101]
[1764667150533,0.0115362,86689.0,86688.0,0.21065]
[1764667151127,0.15604,86693.0,86688.0,0.04964]
[1764667151332,0.09703648,86696.0,86688.0,0.04964]
[1764667151333,0.00317303,86696.0,86695.0,0.20815]
[1764667151543,0.00117303,86696.0,86695.0,0.20815]
[1764667152844,0.00017303,86696.0,86695.0,0.20815]
[1764667153742,0.00117303,86696.0,86695.0,0.20815]
[1764667154146,0.15721303,86696.0,86695.0,0.20815]
[1764667154541,0.15921303,86696.0,86695.0,0.20815]
[1764667155043,0.08004303,86696.0,86695.0,0.20815]
[1764667157844,0.15921303,86696.0,86695.0,0.20815]
[1764667158945,0.15921303,86696.0,86695.0,0.15851]
[1764667159344,0.167577,86683.0,86682.0,0.52181]
[1764667160348,0.167577,86683.0,86682.0,0.16101]
[1764667161633,0.01492,86683.0,86682.0,0.16101]
[1764667162052,0.01592,86683.0,86682.0,0.16101]
[1764667162243,0.01692,86683.0,86682.0,0.16101]
[1764667162954,0.028457,86683.0,86682.0,0.16101]
[1764667165754,0.22719194,86689.0,86688.0,0.21065]
[1764667165951,0.23872814,86689.0,86688.0,0.21065]
[1764667167846,0.24072814,86689.0,86688.0,0.13082]
[1764667168045,0.24172814,86689.0,86688.0,0.13082]
[1764667168249,0.23972814,86689.0,86688.0,0.13082]
[1764667168449,0.24172814,86689.0,86688.0,0.21065]
[1764667169459,0.0145362,86689.0,86688.0,0.21065]
[1764667173959,0.0125362,86689.0,86688.0,0.21065]
[1764667174450,0.0135362,86689.0,86688.0,0.21065]
[1764667185159,0.0467162,86689.0,86688.0,0.21065]
[1764667185862,0.0798962,86689.0,86688.0,0.21065]
[1764667187267,0.16278862,86689.0,86688.0,0.21065]
[1764667187970,0.18351483,86689.0,86688.0,0.18438105]
[1764667188169,0.23605483,86689.0,86688.0,0.18438105]
[1764667188369,0.1324362,86689.0,86688.0,0.18438105]
[1764667189372,0.0135362,86689.0,86688.0,0.18438105]
[1764667193179,0.1324362,86689.0,86688.0,0.18438105]
[1764667193881,0.1324362,86689.0,86688.0,0.13474105]
[1764667194068,0.1189,86685.0,86684.0,0.06846]
[1764667194265,0.1189,86685.0,86684.0,0.16162]
[1764667194676,0.1189,86685.0,86684.0,0.2533]
[1764667196066,0.1189,86685.0,86684.0,0.22702835]
[1764667196266,0.1199,86685.0,86684.0,0.18484]
[1764667196475,0.1229,86685.0,86684.0,0.18484]
[1764667199579,0.1219,86685.0,86684.0,0.18484]
[1764667199783,0.1229,86685.0,86684.0,0.18484]
[1764667199972,0.1199,86685.0,86684.0,0.18484]
[1764667200177,0.1229,86685.0,86684.0,0.18484]
[1764667200684,0.1304374,86680.0,86679.0,0.18501303]
[1764667200885,0.4912374,86680.0,86679.0,0.18501303]
[1764667201971,0.3723374,86680.0,86679.0,0.18501303]
[1764667202168,0.3743374,86680.0,86679.0,0.18501303]
[1764667202375,0.1172908,86680.0,86679.0,0.18501303]
[1764667202568,0.0135374,86680.0,86679.0,0.18501303]
[1764667202876,0.53612,86683.0,86679.0,0.54581303]
[1764667202877,0.1152905,86683.0,86679.0,0.54581303]
[1764667203081,0.06834182,86701.0,86688.0,0.05489]
[1764667203395,0.06219369,86698.0,86695.0,0.3608]
[1764667203679,0.06219369,86698.0,86697.0,0.3608]
[1764667203887,0.08298287,86700.0,86697.0,0.3608]
[1764667204275,0.25291287,86701.0,86697.0,0.3608]
[1764667204679,0.08298287,86700.0,86697.0,0.3608]
[1764667204882,0.0115349,86699.0,86697.0,0.3608]
[1764667205187,0.16993,86698.0,86697.0,0.3608]
[1764667208387,0.17093,86698.0,86697.0,0.3608]
[1764667210491,0.16598701,86698.0,86697.0,0.3608]
[1764667210680,0.16598616,86698.0,86697.0,0.3608]
[1764667211184,0.16698616,86698.0,86697.0,0.3608]
[1764667211892,0.16598616,86698.0,86697.0,0.3608]
[1764667212195,0.16498616,86698.0,86697.0,0.3608]
[1764667213393,0.08219,86698.0,86697.0,0.3608]
[1764667213894,0.16993,86698.0,86697.0,0.3608]
[1764667214489,0.16993,86698.0,86697.0,0.3618]
[1764667214975,0.16993,86698.0,86697.0,0.3608]
[1764667216181,0.011535,86699.0,86697.0,0.3608]
[1764667216491,0.15470353,86705.0,86699.0,0.0115348]
[1764667216682,0.0115341,86705.0,86704.0,0.3608]
[1764667217485,0.0937241,86705.0,86704.0,0.3608]
[1764667217687,0.27317747,86705.0,86704.0,0.3608]
[1764667218193,0.27317747,86705.0,86704.0,0.3618]
[1764667219981,0.33522404,86705.0,86704.0,0.3618]
[1764667220183,0.32368994,86705.0,86704.0,0.3608]
[1764667220384,0.26164337,86705.0,86704.0,0.3608]
[1764667220994,0.26264337,86705.0,86704.0,0.3608]
[1764667222089,0.32468994,86705.0,86704.0,0.3608]
[1764667222492,0.32368994,86705.0,86704.0,0.3608]
[1764667222698,0.26164337,86705.0,86704.0,0.3608]
[1764667223391,0.26264337,86705.0,86704.0,0.3608]
[1764667224491,0.26464337,86705.0,86704.0,0.3608]
[1764667225185,0.26364337,86705.0,86704.0,0.3608]
[1764667225496,0.26464337,86705.0,86704.0,0.33453532]
[1764667226793,0.26364337,86705.0,86704.0,0.33453532]
[1764667227000,0.26464337,86705.0,86704.0,0.33453532]
[1764667229083,0.26364337,86705.0,86704.0,0.33453532]
[1764667229281,0.09471337,86705.0,86704.0,0.33453532]
[1764667230096,0.09271337,86705.0,86704.0,0.33453532]
[1764667230288,0.1558498,86705.0,86704.0,0.33453532]
[1764667230489,0.09371337,86705.0,86704.0,0.33453532]
[1764667230801,0.09271337,86705.0,86704.0,0.33553532]
[1764667231299,0.09271337,86705.0,86704.0,0.33453532]
[1764667231599,0.09171337,86705.0,86704.0,0.39461532]
[1764667231792,0.011534,86706.0,86705.0,0.05908]
[1764667232505,0.10152129,86706.0,86705.0,0.05908]
[1764667233093,0.10152129,86706.0,86705.0,0.78068]
[1764667233395,0.16374536,86706.0,86705.0,0.78068]
[1764667233594,0.37575536,86706.0,86705.0,0.78068]
[1764667233801,0.31353129,86706.0,86705.0,0.78068]
[1764667234905,0.31453129,86706.0,86705.0,0.78068]
[1764667235610,0.08998729,86706.0,86705.0,0.78068]
[1764667235791,0.00017303,86707.0,86706.0,0.0568]
[1764667236108,0.0115322,86720.0,86719.0,0.0568]
[1764667236304,0.0115322,86720.0,86719.0,0.4176]
[1764667236501,0.1232222,86720.0,86719.0,0.4176]
[1764667237304,0.09173436,86720.0,86719.0,0.4176]
[1764667237506,0.001,86720.0,86719.0,0.4176]
[1764667238388,0.11369,86720.0,86719.0,0.4176]
[1764667238594,0.002,86720.0,86719.0,0.4176]
[1764667238799,0.09357761,86720.0,86719.0,0.4176]
[1764667239308,0.09357761,86720.0,86719.0,0.7784]
[1764667239498,0.15574535,86720.0,86719.0,0.7784]
[1764667239705,0.06416774,86720.0,86719.0,0.7784]
[1764667239894,0.17585774,86720.0,86719.0,0.7784]
[1764667240092,0.37247622,86720.0,86719.0,0.7784]
[1764667240396,0.31030848,86720.0,86719.0,0.7784]
[1764667241194,0.31030848,86720.0,86719.0,0.7216]
[1764667241799,0.31030848,86720.0,86719.0,0.75]
[1764667242009,0.31030848,86720.0,86719.0,0.7784]
[1764667246404,0.10340596,86727.0,86726.0,0.0683313]
[1764667246593,0.00017303,86728.0,86726.0,0.3608]
[1764667248411,0.00017303,86728.0,86726.0,0.3608]
[1764667248909,0.00017303,86728.0,86726.0,0.3618]
[1764667250010,0.0115312,86727.0,86726.0,0.3618]
[1764667250310,0.00017303,86728.0,86726.0,0.3618]
[1764667250510,0.00017303,86728.0,86727.0,0.0115312]
[1764667252012,0.00017303,86728.0,86727.0,0.0125312]
[1764667253011,0.00017303,86728.0,86727.0,0.001]
[1764667257614,0.29786523,86728.0,86727.0,0.001]
[1764667259309,0.21513303,86728.0,86727.0,0.001]
[1764667261506,0.22666413,86728.0,86727.0,0.001]
[1764667261706,0.21513303,86728.0,86727.0,0.001]
[1764667262508,0.2208012,86727.0,86726.0,0.3608]
[1764667262708,0.20927,86727.0,86726.0,0.3723313]
[1764667263219,0.00017303,86728.0,86726.0,0.3723313]
[1764667264118,0.00017303,86728.0,86727.0,0.001]
[1764667264418,0.0115283,86749.0,86727.0,0.001]
[1764667264419,0.06209974,86747.0,86739.0,0.0115295]
[1764667264612,0.06209974,86751.0,86743.0,0.7216]
[1764667264916,0.075469,86744.0,86743.0,0.7216]
[1764667265323,0.06394,86744.0,86743.0,0.7216]
[1764667265510,0.1574933,86744.0,86743.0,0.7216]
[1764667265710,0.3564933,86744.0,86743.0,0.7216]
[1764667267023,0.3564933,86744.0,86743.0,0.7236]
[1764667270229,0.3564933,86744.0,86743.0,0.7351291]
[1764667270416,0.06394,86744.0,86743.0,0.7351291]
[1764667270722,0.06394,86748.0,86747.0,0.0115285]
[1764667270920,0.00017293,86752.0,86749.0,0.0115282]
[1764667271117,0.00017293,86752.0,86751.0,0.3608]
[1764667271416,0.09455648,86752.0,86751.0,0.3608]
[1764667271618,0.00017293,86752.0,86751.0,0.3608]
[1764667271928,0.26075,86766.0,86751.0,0.3608]
[1764667272125,0.26075,86766.0,86765.0,0.7216]
[1764667272126,0.06175,86766.0,86765.0,0.7216]
[1764667272625,0.1746953,86772.0,86765.0,0.7216]
[1764667272829,0.0115255,86770.0,86765.0,0.7216]
[1764667273016,0.1129455,86770.0,86765.0,0.7216]
[1764667273324,0.06175,86772.0,86770.0,0.0115254]
[1764667273525,0.26075,86772.0,86768.0,0.0115256]
[1764667273710,0.09758,86766.0,86765.0,0.7216]
[1764667273915,0.199,86766.0,86765.0,0.7216]
[1764667274815,0.0461996,86766.0,86765.0,0.89772]
[1764667275015,0.1437796,86766.0,86765.0,0.89772]
[1764667275520,0.10242,86770.0,86769.0,0.17612]
[1764667275713,0.2,86770.0,86769.0,0.17612]
[1764667276526,0.09288309,86773.0,86772.0,0.17612]
[1764667276824,0.06209974,86775.0,86774.0,0.17612]
[1764667277425,0.06209974,86775.0,86773.0,0.0115251]
[1764667277426,0.16351974,86776.0,86775.0,0.17612]
[1764667277622,0.26109974,86776.0,86775.0,0.17612]
[1764667278725,0.35598249,86776.0,86775.0,0.17612]
[1764667279424,0.29388275,86776.0,86775.0,0.17612]
[1764667279624,0.29488275,86776.0,86775.0,0.17612]
[1764667280920,0.199,86773.0,86772.0,0.3608]
[1764667281227,0.199,86773.0,86772.0,0.44886]
[1764667281416,0.199,86773.0,86772.0,0.3608]
[1764667281923,0.2,86773.0,86772.0,0.3608]
[1764667282322,0.201,86773.0,86772.0,0.3608]
[1764667284426,0.201,86773.0,86772.0,0.53692]
[1764667285330,0.10342,86773.0,86772.0,0.53692]
[1764667285729,0.002,86773.0,86772.0,0.53692]
[1764667288032,0.10342,86773.0,86772.0,0.53692]
[1764667289918,0.10342,86773.0,86772.0,1.07248]
[1764667290533,0.201,86773.0,86772.0,1.07248]
[1764667290733,0.26309974,86773.0,86772.0,1.07248]
[1764667290936,0.201,86773.0,86772.0,1.07248]
[1764667291937,0.10342,86773.0,86772.0,1.07248]
[1764667292334,0.20145,86773.0,86772.0,1.07248]
[1764667293536,0.2129751,86773.0,86772.0,1.0840052]
[1764667296429,0.2129751,86773.0,86772.0,1.07248]
[1764667298039,0.2129751,86773.0,86772.0,0.89632]
[1764667298342,0.29576491,86773.0,86772.0,0.97977]
[1764667298642,0.29576491,86773.0,86772.0,1.06322]
[1764667299136,0.28423981,86773.0,86772.0,1.06322]
[1764667299341,0.20145,86773.0,86772.0,1.06322]
[1764667299727,0.28433447,86773.0,86772.0,1.06322]
[1764667300142,0.002,86773.0,86772.0,1.06322]
[1764667300338,0.00011368,86777.0,86776.0,0.1669]
[1764667300548,0.00011368,86777.0,86776.0,0.5392247]
[1764667301551,0.00211368,86777.0,86776.0,0.5392247]
[1764667302449,0.00311368,86777.0,86776.0,0.5392247]
[1764667302837,0.20665368,86777.0,86776.0,0.5277]
[1764667303140,0.08288447,86779.0,86778.0,0.1669]
[1764667303338,0.08288447,86780.0,86779.0,0.1784243]
[1764667303543,0.08288447,86782.0,86781.0,0.1669]
[1764667303729,0.08288447,86788.0,86787.0,0.1784232]
[1764667303935,0.0115227,86791.0,86790.0,0.1784228]
[1764667304335,0.11513334,86791.0,86790.0,0.1784228]
[1764667304736,0.11513334,86791.0,86790.0,0.1669]
[1764667304941,0.0115227,86791.0,86790.0,0.1669]
[1764667305142,0.0125227,86791.0,86790.0,0.1669]
[1764667305339,0.1161027,86791.0,86790.0,0.1669]
[1764667305648,0.21968314,86791.0,86790.0,0.1669]
[1764667305844,0.1161027,86791.0,86790.0,0.1669]
[1764667306140,0.2170627,86791.0,86790.0,0.1669]
[1764667306544,0.2170627,86791.0,86790.0,0.08345]
[1764667306747,0.2150631,86788.0,86787.0,0.44425]
[1764667306933,0.2150631,86788.0,86787.0,0.84861]
[1764667307639,0.2150631,86788.0,86787.0,0.93206]
[1764667308235,0.16259581,86790.0,86787.0,0.93306]
[1764667308441,0.11507851,86792.0,86791.0,0.1669]
[1764667308741,0.10355581,86792.0,86791.0,0.1669]
[1764667308933,0.10355581,86792.0,86791.0,0.5277]
[1764667309130,0.10355581,86797.0,86796.0,0.1669]
[1764667309334,0.10355581,86797.0,86796.0,0.70234]
[1764667309547,0.21865761,86798.0,86797.0,0.1669]
[1764667310250,0.21857086,86798.0,86797.0,0.1669]
[1764667310650,0.31853086,86798.0,86797.0,0.1669]
[1764667311042,0.31853086,86798.0,86797.0,0.002]
[1764667311243,0.2150618,86798.0,86797.0,0.53744]
[1764667311748,0.31853086,86798.0,86797.0,0.53744]
[1764667312337,0.2150618,86798.0,86797.0,0.53744]
[1764667313263,0.2150626,86792.0,86791.0,0.3608]
[1764667313570,0.31853166,86792.0,86791.0,0.3608]
[1764667313742,0.2150626,86792.0,86791.0,0.3608]
[1764667315147,0.2160626,86792.0,86791.0,0.3608]
[1764667315547,0.2160626,86792.0,86791.0,0.33456338]
[1764667316146,0.20454,86792.0,86791.0,0.50546338]
[1764667317355,0.20554,86792.0,86791.0,0.50546338]
[1764667317659,0.20554,86792.0,86791.0,0.33456338]
[1764667317853,0.20454,86792.0,86791.0,0.50646338]
[1764667318154,0.20354,86792.0,86791.0,0.50646338]
[1764667318344,0.20354,86792.0,86791.0,0.50546338]
[1764667318539,0.20354,86792.0,86791.0,0.50646338]
[1764667318745,0.10358,86792.0,86791.0,0.50646338]
[1764667318945,0.10358,86792.0,86791.0,0.50546338]
[1764667319241,0.10358,86792.0,86791.0,0.50646338]
[1764667320247,0.08276379,86797.0,86796.0,0.1709]
[1764667320552,0.08276379,86798.0,86797.0,0.1709]
[1764667320945,0.08276379,86802.0,86801.0,0.1709]
[1764667321152,0.20354,86805.0,86804.0,0.1709]
[1764667321953,0.0115208,86806.0,86805.0,0.1709]
[1764667322338,0.08276379,86808.0,86807.0,0.1709]
[1764667322546,0.08276379,86810.0,86808.0,0.14648]
[1764667322852,0.26763379,86819.0,86818.0,0.12206]
[1764667323152,0.08276379,86820.0,86818.0,0.4943791]
[1764667323351,0.08276379,86832.0,86831.0,0.12206]
[1764667323650,0.06200009,86837.0,86831.0,1.2572]
[1764667323845,0.30593009,86832.0,86831.0,0.7216]
[1764667324164,0.05906,86840.0,86839.0,0.0115163]
[1764667324346,0.05906,86848.0,86846.0,0.0115153]
[1764667324661,0.05906,86848.0,86847.0,0.3608]
[1764667324843,0.15101,86848.0,86847.0,0.3608]
[1764667325251,0.05906,86848.0,86847.0,0.3723153]
[1764667325454,0.24493,86848.0,86847.0,0.3608]
[1764667325839,0.24393,86850.0,86847.0,0.89664]
[1764667326048,0.18487,86848.0,86847.0,0.89664]
[1764667326242,0.18587,86848.0,86847.0,0.89664]
[1764667326850,0.1973851,86848.0,86847.0,0.89664]
[1764667327350,0.001,86848.0,86847.0,0.89664]
[1764667327550,0.05,86871.0,86868.0,0.0115124]
[1764667327854,0.23487,86871.0,86870.0,0.7216]
[1764667328051,0.23487,86871.0,86870.0,1.25756]
[1764667328653,0.23587,86871.0,86870.0,1.25756]
[1764667329351,0.23487,86871.0,86870.0,1.25756]
[1764667329556,0.23587,86871.0,86870.0,1.25756]
[1764667330253,0.23687,86871.0,86870.0,1.25756]
[1764667331245,0.23687,86871.0,86870.0,0.7216]
[1764667331446,0.23687,86871.0,86870.0,1.10496]
[1764667343773,0.23587,86871.0,86870.0,1.10696]
[1764667343976,0.23487,86871.0,86870.0,1.10696]
[1764667344976,0.23487,86871.0,86870.0,0.7236]
[1764667345166,0.23487,86871.0,86870.0,0.3628]
[1764667345670,0.23487,86871.0,86870.0,0.3608]
[1764667345876,0.23487,86871.0,86870.0,0.3628]
[1764667346866,0.23487,86871.0,86870.0,0.3608]
[1764667347066,0.23587,86871.0,86870.0,0.3608]
[1764667347776,0.23487,86871.0,86870.0,0.3608]
[1764667348364,0.29679032,86871.0,86870.0,0.3608]
[1764667348773,0.29779032,86871.0,86870.0,0.3608]
[1764667349473,0.23587,86871.0,86870.0,0.3608]
[1764667350268,0.23487,86871.0,86870.0,0.3608]
[1764667351078,0.1963833,86862.0,86861.0,0.36097272]
[1764667351374,0.1963833,86862.0,86861.0,0.72177272]
[1764667351574,0.05906,86863.0,86861.0,0.72177272]
[1764667351772,0.24393,86863.0,86861.0,0.72177272]
[1764667352278,0.24393,86863.0,86861.0,0.73328602]
[1764667352279,0.05906,86863.0,86861.0,0.73328602]
[1764667353074,0.05906,86863.0,86861.0,0.72177272]
[1764667353275,0.1974133,86862.0,86861.0,0.72177272]
[1764667353661,0.1974133,86862.0,86861.0,0.72377272]
[1764667355778,0.1974133,86862.0,86854.0,0.3608]
[1764667355779,0.1985142,86855.0,86854.0,0.3608]
[1764667355967,0.1985142,86855.0,86854.0,0.35051284]
[1764667357464,0.1985142,86855.0,86854.0,0.35151284]
[1764667358279,0.28125228,86855.0,86854.0,0.35151284]
[1764667358599,0.1985142,86855.0,86854.0,0.35151284]
[1764667360167,0.29086115,86855.0,86854.0,0.35151284]
[1764667362364,0.35287499,86855.0,86854.0,0.35151284]
[1764667362680,0.29086115,86855.0,86854.0,0.35151284]
[1764667363169,0.35287499,86855.0,86854.0,0.35151284]
[1764667363365,0.29086115,86855.0,86854.0,0.35151284]
[1764667364383,0.35286661,86855.0,86854.0,0.35151284]
[1764667364773,0.29086115,86855.0,86854.0,0.35151284]
[1764667368489,0.29086115,86855.0,86846.0,0.00017272]
[1764667368490,0.1985153,86847.0,86846.0,0.00017272]
[1764667368686,0.1985163,86839.0,86838.0,0.4479]
[1764667370090,0.1985163,86839.0,86838.0,0.4509]
[1764667370494,0.1985163,86839.0,86838.0,0.4519]
[1764667372991,0.1985163,86839.0,86838.0,0.0911]
[1764667373180,0.1985163,86839.0,86838.0,0.4519]
[1764667373779,0.2605166,86839.0,86838.0,0.4519]
[1764667373985,0.1985163,86839.0,86838.0,0.4519]
[1764667374391,0.2605166,86839.0,86838.0,0.4519]
[1764667376398,0.1985163,86839.0,86838.0,0.4519]
[1764667378397,0.1985163,86839.0,86838.0,0.004]
[1764667378595,0.1985163,86839.0,86838.0,0.0911]
[1764667381600,0.1985163,86839.0,86838.0,0.4519]
[1764667381792,0.0115162,86840.0,86839.0,0.0871]
[1764667382099,0.16567856,86840.0,86839.0,0.0871]
[1764667382302,0.1985162,86840.0,86839.0,0.0871]
[1764667382892,0.1985162,86840.0,86839.0,0.4479]
[1764667383095,0.1985162,86840.0,86839.0,0.4509]